bitfinex/quotes_ETHUSD_20241109
["timestamp","ask_amount","ask_price","bid_price","bid_amount"]
[1731185087974,0.67737958,3087.8,3087.4,0.29940532]
[1731185088270,0.98856428,3087.8,3087.5,0.29940532]
[1731185088467,0.67737958,3087.7,3087.5,0.29940532]
[1731185088776,0.67737958,3087.7,3086.9,0.8044]
[1731185088777,0.67737958,3087.6,3087.0,0.4993178]
[1731185088985,1.0001538,3087.6,3087.0,0.4993178]
[1731185089268,0.7622,3087.5,3086.9,1.3037178]
[1731185089471,0.7622,3087.5,3087.1,0.29960022]
[1731185089848,0.7622,3087.5,3087.0,0.29960022]
[1731185090040,1.43957958,3087.5,3087.0,0.29960022]
[1731185090244,1.43957958,3087.5,3086.9,1.3037178]
[1731185090245,1.43957958,3087.5,3087.1,0.29960022]
[1731185090471,1.43957958,3087.5,3087.2,0.29960022]
[1731185090774,1.04004303,3087.5,3087.2,0.29960022]
[1731185091073,0.03155248,3087.4,3087.3,0.29960022]
[1731185094049,0.03155248,3087.4,3087.3,0.2995704]
[1731185095086,0.70893206,3087.4,3087.3,0.2995704]
[1731185096890,0.70893206,3087.4,3086.9,1.30374777]
[1731185097256,0.70893206,3087.4,3087.3,0.29960866]
[1731185097553,0.03155248,3087.4,3087.3,0.29960866]
[1731185097894,0.67737958,3087.6,3087.1,1.72244925]
[1731185098200,0.03053444,3087.4,3087.2,0.29960866]
[1731185098351,0.03057208,3087.5,3087.3,0.29960866]
[1731185098555,0.67737958,3087.6,3087.4,0.29960866]
[1731185098900,0.67737958,3087.6,3087.5,0.29960866]
[1731185099767,1.01607645,3087.7,3087.5,0.29960866]
[1731185099965,1.01607645,3087.7,3087.2,0.49934777]
[1731185099966,0.67828355,3087.6,3087.2,0.49934777]
[1731185100146,0.67828421,3087.5,3087.2,0.49934777]
[1731185101601,0.67828421,3087.5,3087.2,0.99873986]
[1731185101894,0.67828421,3087.5,3087.2,0.72157622]
[1731185102064,0.67828421,3087.6,3087.2,0.72157622]
[1731185102256,0.67828421,3087.5,3087.2,0.72157622]
[1731185102455,0.67828421,3087.5,3087.3,0.29963514]
[1731185103127,0.67828421,3087.5,3087.3,1.09866248]
[1731185103418,0.67828421,3087.4,3087.3,0.29963514]
[1731185103624,0.67828421,3087.5,3087.3,0.29963514]
[1731185103927,0.67828421,3087.5,3087.4,0.8109]
[1731185104411,0.67828421,3087.6,3087.4,0.8109]
[1731185105117,0.67828421,3087.6,3087.4,1.6100506]
[1731185105276,0.67828421,3087.6,3087.4,0.7991506]
[1731185105489,1.99893328,3087.5,3087.4,0.29645483]
[1731185105898,1.01221738,3087.5,3087.4,0.29645483]
[1731185106423,2.70835241,3087.5,3087.4,0.29645483]
[1731185106631,1.01221738,3087.5,3087.4,0.29645483]
[1731185106826,3.0487022,3087.5,3087.4,0.29645483]
[1731185107129,1.01221738,3087.5,3087.4,0.29645483]
[1731185107491,3.0487022,3087.5,3087.4,0.29645483]
[1731185109231,1.01221738,3087.5,3087.4,0.29645483]
[1731185109535,1.56221738,3087.5,3087.4,0.29645483]
[1731185109838,4.56221738,3087.5,3087.4,0.29645483]
[1731185110001,0.8149,3087.3,3086.6,0.59927096]
[1731185110212,1.01785057,3086.7,3086.6,0.59927096]
[1731185110755,0.71437707,3086.7,3086.6,0.59927096]
[1731185111728,0.71437707,3086.7,3086.4,0.59927096]
[1731185111937,1.01785057,3086.5,3086.4,0.59927096]
[1731185112143,2.07387116,3086.5,3086.4,0.59927096]
[1731185112294,2.20815196,3086.5,3086.4,0.59927096]
[1731185112493,2.20815196,3086.5,3085.4,1.22310148]
[1731185112740,0.6782274,3086.3,3085.4,1.22310148]
[1731185113234,0.03595906,3086.2,3085.8,1.22310148]
[1731185113434,0.03595906,3086.2,3085.8,0.20404015]
[1731185113730,0.03591196,3086.1,3085.7,0.8173]
[1731185113931,0.6782274,3086.4,3085.7,0.8173]
[1731185114094,0.0358496,3086.0,3085.7,0.8173]
[1731185114433,0.8149,3086.5,3085.7,1.16426669]
[1731185114434,1.4931274,3086.5,3085.7,1.16426669]
[1731185114887,0.03603721,3086.4,3085.7,1.16426669]
[1731185115087,0.03603721,3086.4,3085.7,0.8173]
[1731185115328,0.03603721,3086.4,3085.4,0.49843435]
[1731185115329,0.71426461,3086.4,3085.5,0.8173]
[1731185115717,0.7946,3086.3,3085.2,4.31557044]
[1731185116032,0.7946,3086.3,3085.3,0.59792453]
[1731185116240,0.03594303,3086.2,3085.3,0.59792453]
[1731185116528,0.66355684,3086.1,3085.2,1.41522453]
[1731185116833,0.66355684,3086.1,3085.3,0.45658619]
[1731185117132,0.03584884,3086.0,3085.3,0.45658619]
[1731185120219,0.03584884,3086.0,3085.3,0.52140185]
[1731185120430,0.7946,3086.3,3085.3,0.52140185]
[1731185120597,0.03572011,3085.9,3085.3,0.52140185]
[1731185120798,0.7946,3086.3,3085.3,0.45658619]
[1731185121030,0.65924168,3086.2,3085.2,0.8173]
[1731185121368,0.69510309,3086.2,3085.2,0.8173]
[1731185121912,0.7946,3086.1,3085.2,0.8173]
[1731185122238,0.83041431,3086.1,3085.3,0.29867376]
[1731185122549,0.83041431,3086.1,3085.3,0.59733667]
[1731185122754,0.83041431,3086.1,3085.3,0.29867376]
[1731185123099,0.83041431,3086.1,3084.9,0.88212154]
[1731185123841,0.83041431,3086.1,3085.0,0.65211997]
[1731185125727,0.83041431,3086.1,3085.0,0.71694168]
[1731185126048,0.83041431,3086.1,3085.0,0.65211997]
[1731185126863,0.83041431,3086.1,3085.0,0.35344885]
[1731185127563,0.83041431,3086.1,3085.0,0.41827056]
[1731185129028,0.83041431,3086.1,3085.0,0.35344885]
[1731185130643,0.73041431,3086.1,3085.0,0.35344885]
[1731185132068,0.73041431,3086.1,3085.1,0.29865675]
[1731185132373,0.73041431,3086.1,3085.2,0.29865675]
[1731185132716,0.73041431,3086.1,3085.3,0.29865675]
[1731185132890,0.73041431,3086.1,3085.4,0.29865675]
[1731185133092,0.73041431,3086.1,3085.5,0.29865675]
[1731185133495,0.73041431,3086.1,3085.6,0.29865675]
[1731185133693,0.73041431,3086.1,3085.7,0.29865675]
[1731185133921,0.73041431,3086.1,3085.1,1.22477849]
[1731185134806,0.73041431,3086.1,3085.2,0.29886182]
[1731185135113,0.73041431,3086.1,3085.3,0.29886182]
[1731185135615,0.73041431,3086.1,3085.3,0.89617533]
[1731185135815,0.73041431,3086.1,3085.3,0.29886182]
[1731185136320,0.73041431,3086.1,3085.4,0.29886182]
[1731185136501,0.73041431,3086.1,3085.5,0.29886182]
[1731185136818,0.8246,3085.9,3085.6,0.29886182]
[1731185137024,0.8246,3085.9,3085.6,0.59839688]
[1731185137184,0.03566309,3085.8,3085.6,0.59839688]
[1731185137384,0.8246,3085.7,3085.6,0.29953506]
[1731185137578,0.86021599,3085.7,3085.6,0.29953506]
[1731185138014,0.86021599,3085.7,3085.1,1.22477849]
[1731185138200,0.86021599,3085.7,3085.6,0.29969437]
[1731185138988,0.86021599,3085.7,3085.6,0.29983257]
[1731185140351,0.86021599,3085.7,3085.6,0.59981203]
[1731185140653,0.8246,3085.7,3085.6,0.59981203]
[1731185141619,1.04764378,3085.7,3085.6,0.29997946]
[1731185142450,0.8246,3085.7,3085.6,0.29997946]
[1731185143662,0.8246,3085.7,3085.6,1.08063071]
[1731185143862,0.8246,3085.7,3085.6,1.08062869]
[1731185144461,0.8246,3085.7,3085.6,1.56102622]
[1731185144665,0.8246,3085.7,3085.6,1.26104676]
[1731185144974,0.8246,3085.7,3085.6,0.78064599]
[1731185146940,1.46462539,3085.7,3085.6,0.78064599]
[1731185150880,1.46462539,3085.7,3085.0,0.50092497]
[1731185151041,1.46462539,3085.7,3085.1,0.30055498]
[1731185151246,1.46462539,3085.7,3085.2,0.30055498]
[1731185151447,1.46462539,3085.7,3085.6,0.48088797]
[1731185151686,1.46462539,3085.7,3085.6,0.78144295]
[1731185152054,1.46462539,3085.7,3085.6,0.30055498]
[1731185152272,1.46462539,3085.7,3085.6,0.78144295]
[1731185152273,1.6970166,3085.7,3085.6,0.78144295]
[1731185152472,2.375244,3085.7,3085.6,0.78144295]
[1731185154190,0.8247,3085.5,3085.0,0.50092497]
[1731185154490,0.6780599,3085.3,3085.0,0.50092497]
[1731185155095,0.6780599,3085.3,3084.5,0.7588]
[1731185155258,0.6780599,3085.3,3084.5,0.95715785]
[1731185155678,0.6780599,3085.2,3084.5,0.95715785]
[1731185156191,0.6780599,3085.3,3084.5,0.95715785]
[1731185156554,1.5027599,3085.2,3084.5,0.7588]
[1731185158169,1.5027599,3085.2,3084.6,0.50104899]
[1731185158485,1.5027599,3085.2,3084.5,1.25984899]
[1731185158665,0.6780599,3085.1,3084.5,1.25984899]
[1731185158865,0.8247,3085.2,3084.5,1.25984899]
[1731185158866,1.5027599,3085.2,3084.5,1.25984899]
[1731185159083,0.6780599,3085.1,3084.5,1.25984899]
[1731185160475,0.93004488,3085.1,3084.5,0.50104899]
[1731185160910,0.93004488,3085.1,3084.5,1.00210415]
[1731185161286,0.93004488,3085.1,3084.5,0.50105516]
[1731185162167,0.93004488,3085.1,3084.4,0.50105516]
[1731185162915,0.8247,3085.0,3084.4,0.50105516]
[1731185163211,0.6780599,3084.8,3084.2,0.50105516]
[1731185163731,0.8247,3084.6,3084.2,0.50105516]
[1731185163886,0.8247,3084.6,3083.3,1.33867377]
[1731185163887,1.5027599,3084.6,3083.8,0.7588]
[1731185164087,1.5027599,3084.6,3084.3,0.48116691]
[1731185164088,0.6780599,3084.5,3084.3,0.48116691]
[1731185164272,0.6780599,3084.5,3083.3,0.7588]
[1731185164273,0.25198498,3084.4,3083.5,1.22477849]
[1731185164610,0.8247,3084.3,3083.5,1.22477849]
[1731185164782,0.8247,3084.3,3083.7,1.22477849]
[1731185164982,0.8247,3084.3,3083.8,0.7588]
[1731185165185,1.5027599,3084.6,3083.9,1.22477849]
[1731185165588,0.8247,3084.6,3083.9,1.42313634]
[1731185166310,1.01708985,3084.9,3084.3,1.22477849]
[1731185166311,0.6780599,3084.9,3084.3,1.22477849]
[1731185166523,1.5027599,3085.0,3084.3,1.22477849]
[1731185166723,1.5027599,3085.0,3084.3,1.42313634]
[1731185167887,0.6780599,3084.9,3084.2,0.7588]
[1731185168084,1.5027599,3085.0,3084.2,0.7588]
[1731185169294,0.6780599,3084.9,3084.2,0.7588]
[1731185170825,0.6780599,3084.9,3083.9,0.7588]
[1731185170826,0.8247,3084.7,3083.9,0.7588]
[1731185171047,0.8247,3084.5,3083.8,1.22477849]
[1731185171191,0.6780599,3084.4,3083.8,1.22477849]
[1731185171391,0.6780599,3084.4,3083.7,0.7588]
[1731185171597,0.6780599,3084.1,3082.9,0.7588]
[1731185171813,0.6780599,3084.1,3082.8,7.44]
[1731185171814,0.6780599,3084.1,3083.6,1.22477849]
[1731185172701,0.8277,3084.0,3082.9,0.8167]
[1731185172901,0.8277,3084.0,3083.7,0.30043525]
[1731185173235,0.8277,3084.0,3083.2,1.22477849]
[1731185173802,0.6780599,3084.1,3083.2,1.22477849]
[1731185173803,0.6780599,3084.1,3083.8,1.22477849]
[1731185174011,0.6780599,3084.3,3084.0,1.22477849]
[1731185174214,0.6780599,3084.4,3083.8,1.22477849]
[1731185174823,0.6780599,3084.4,3083.9,0.30030385]
[1731185175030,0.6780599,3084.4,3083.9,0.60047924]
[1731185175336,0.6780599,3084.4,3083.9,0.30017539]
[1731185175535,0.6780599,3084.6,3084.2,1.22477849]
[1731185175754,0.8277,3084.7,3084.2,1.22477849]
[1731185175755,1.5057599,3084.7,3084.2,1.22477849]
[1731185175958,1.5057599,3084.7,3083.9,1.52495388]
[1731185176248,0.8277,3084.7,3084.1,1.22477849]
[1731185176813,0.8277,3084.7,3084.2,0.30017539]
[1731185177124,0.8277,3084.7,3084.1,1.22477849]
[1731185177323,0.8277,3084.7,3083.8,0.48028062]
[1731185177651,0.8277,3084.7,3084.1,0.8167]
[1731185177811,0.6780599,3084.9,3084.1,0.8167]
[1731185178014,0.6780599,3084.9,3084.2,0.29985771]
[1731185178217,0.6780599,3084.9,3084.3,0.29985771]
[1731185178532,0.1780599,3084.9,3084.1,0.8167]
[1731185178841,1.01708985,3085.1,3084.2,0.46009958]
[1731185179035,1.01708985,3085.1,3084.2,0.39525866]
[1731185179221,5.50392032,3085.2,3084.2,0.39525866]
[1731185179421,1.01708985,3085.1,3084.2,0.39525866]
[1731185179757,5.50392032,3085.2,3084.2,0.39525866]
[1731185180058,5.50392032,3085.2,3084.3,0.46906969]
[1731185180925,5.50392032,3085.2,3084.4,0.29984576]
[1731185181254,5.50392032,3085.2,3084.5,0.29984576]
[1731185181417,5.50392032,3085.2,3084.6,0.29984576]
[1731185181611,2.50392032,3085.2,3084.3,0.16922393]
[1731185181925,2.50392032,3085.2,3084.4,0.29994394]
[1731185182125,1.48683047,3085.2,3084.5,0.29994394]
[1731185182453,1.48683047,3085.2,3084.6,0.29994394]
[1731185182822,1.48683047,3085.2,3084.4,0.48028062]
[1731185182823,1.48683047,3085.2,3084.7,0.29994394]
[1731185183147,1.48683047,3085.2,3084.3,0.48028062]
[1731185183148,0.25039203,3085.1,3084.3,0.48028062]
[1731185183358,2.50392032,3085.2,3084.4,0.78024002]
[1731185183518,2.50392032,3085.2,3084.5,0.2999594]
[1731185183954,2.50392032,3085.2,3084.6,0.2999594]
[1731185184161,2.50392032,3085.2,3084.7,0.2999594]
[1731185184458,1.26748188,3085.1,3084.3,0.48028062]
[1731185184757,1.26748188,3085.1,3084.2,0.48031555]
[1731185184758,1.01708985,3085.0,3084.2,0.48031555]
[1731185184961,0.8277,3084.9,3084.2,0.48031555]
[1731185185175,1.84478985,3084.6,3084.2,0.48031555]
[1731185185460,1.87739454,3084.8,3084.4,0.30019721]
[1731185185461,0.8277,3084.8,3084.4,0.30019721]
[1731185185617,4.35610791,3085.0,3084.4,0.30019721]
[1731185185618,1.01708985,3085.0,3084.4,0.30019721]
[1731185185818,1.01708985,3085.2,3084.5,0.8167]
[1731185186150,1.01708985,3085.3,3084.5,0.8167]
[1731185186453,1.01708985,3085.2,3084.3,1.11689721]
[1731185186654,1.01708985,3085.1,3084.3,1.11689721]
[1731185186813,1.01708985,3085.2,3084.3,1.59721276]
[1731185187150,1.01708985,3085.1,3084.6,0.30019721]
[1731185187361,1.63447362,3085.2,3084.6,0.30019721]
[1731185187653,1.63447362,3085.2,3084.7,0.30019721]
[1731185187850,4.63447362,3085.2,3084.7,0.30019721]
[1731185188049,4.01708985,3085.1,3084.4,0.48031555]
[1731185188267,4.67815698,3085.1,3084.5,0.30018372]
[1731185188415,4.67815698,3085.1,3084.6,0.30018372]
[1731185188615,0.67756219,3084.9,3084.6,0.30018372]
[1731185188822,1.50526219,3084.9,3084.7,0.30018372]
[1731185189124,1.50526219,3084.9,3084.4,0.48029396]
[1731185189125,1.84478985,3084.9,3084.5,0.30018372]
[1731185189460,0.67761593,3084.6,3084.4,0.48029396]
[1731185189648,0.67761593,3084.6,3084.1,0.8167]
[1731185189829,0.67761593,3084.7,3084.2,0.48029396]
[1731185190017,0.67761593,3084.7,3084.2,0.78062752]
[1731185190548,0.67761593,3084.7,3084.3,0.30033356]
[1731185191061,6.07136196,3084.4,3084.3,0.30033356]
[1731185191215,0.8277,3084.3,3083.5,0.78144046]
[1731185191418,0.8277,3084.3,3083.1,0.8167]
[1731185191419,0.67784602,3083.9,3083.2,0.48088644]
[1731185191631,0.84730753,3083.9,3083.3,0.48085168]
[1731185191818,1.50554602,3083.8,3083.4,0.48085168]
[1731185192017,1.50554602,3083.8,3083.2,0.48088644]
[1731185192018,1.50554602,3083.8,3083.2,0.96173812]
[1731185192252,1.50554602,3083.8,3083.2,0.48085168]
[1731185192453,0.8277,3083.8,3083.2,0.48085168]
[1731185193017,0.8277,3083.8,3083.2,0.43085168]
[1731185193218,0.8277,3083.8,3083.1,0.8167]
[1731185195473,0.67784602,3084.0,3083.1,0.8167]
[1731185195758,0.67784602,3083.9,3083.1,0.8167]
[1731185196564,4.55401514,3084.0,3083.1,0.8167]
[1731185196565,4.21509213,3084.0,3083.1,0.8167]
[1731185196757,0.67784602,3083.9,3083.1,0.8167]
[1731185197957,0.67784602,3084.1,3083.2,0.06486677]
[1731185198172,0.67784602,3084.3,3083.3,0.35371727]
[1731185198543,0.67784602,3084.3,3083.4,0.8235]
[1731185203175,0.67784602,3084.3,3083.5,0.77888455]
[1731185203483,1.47794602,3084.4,3083.5,0.97449473]
[1731185204052,0.67784602,3084.3,3083.6,0.29958426]
[1731185204383,0.67784602,3084.3,3083.7,0.29958426]
[1731185204586,1.47794602,3084.4,3083.8,0.2995565]
[1731185204784,0.67784602,3084.3,3083.8,0.2995565]
[1731185204985,0.67784602,3084.3,3083.9,0.2995565]
[1731185205448,0.67784602,3084.3,3083.5,0.19561018]
[1731185205649,0.67784602,3084.3,3083.5,0.67488049]
[1731185205884,0.67784602,3084.3,3083.5,1.15415978]
[1731185206053,0.67784602,3084.3,3083.6,0.49730992]
[1731185206368,0.67784602,3084.3,3083.7,0.29954394]
[1731185206544,0.67784602,3084.3,3083.8,0.29954394]
[1731185207163,0.67784602,3084.3,3083.9,0.7828]
[1731185207386,0.67784602,3084.7,3084.1,0.7828]
[1731185207545,2.13379205,3085.0,3084.1,0.7828]
[1731185207546,0.67784602,3084.9,3084.3,2.65560595]
[1731185207753,0.67784602,3085.1,3084.4,1.08234394]
[1731185208059,0.67784602,3085.2,3084.5,0.29954394]
[1731185208244,0.67784602,3085.2,3084.6,0.29954394]
[1731185208245,0.92511753,3085.2,3084.6,0.29954394]
[1731185208648,0.67784602,3085.1,3084.6,0.29954394]
[1731185209086,0.67784602,3085.1,3084.7,0.29919101]
[1731185209279,0.92511753,3085.2,3084.4,0.7828]
[1731185210196,0.92511753,3085.2,3084.4,1.26207031]
[1731185210496,0.92511753,3085.2,3084.4,1.17456763]
[1731185210692,0.92511753,3085.2,3084.5,0.29916457]
[1731185211666,0.92511753,3085.2,3084.5,0.77787019]
[1731185211860,0.92511753,3085.2,3084.6,0.29916457]
[1731185212412,0.24727151,3085.2,3084.5,0.47870562]
[1731185212559,1.45594602,3085.3,3084.7,0.29894855]
[1731185212758,1.45594602,3085.3,3084.8,0.29894855]
[1731185213000,0.67784602,3085.2,3084.8,0.29894855]
[1731185213603,0.67784602,3085.4,3084.9,0.7711]
[1731185213756,0.67784602,3085.5,3084.9,0.7711]
[1731185214099,0.67784602,3085.5,3085.0,0.29888867]
[1731185214269,0.67784602,3085.7,3085.1,0.67144813]
[1731185214600,0.67784602,3085.7,3085.2,0.29888867]
[1731185214601,0.64031632,3085.7,3085.2,0.29888867]
[1731185214912,0.64031632,3085.7,3085.3,0.29888867]
[1731185215192,1.31816234,3085.7,3085.1,0.37255946]
[1731185215402,0.64031632,3085.7,3085.1,0.37255946]
[1731185216055,1.31816234,3085.7,3084.9,0.7711]
[1731185216257,1.31816234,3085.7,3085.0,0.29860747]
[1731185216506,1.31816234,3085.7,3085.1,0.29857952]
[1731185217061,1.31816234,3085.7,3085.1,0.59715439]
[1731185217476,1.31816234,3085.7,3085.1,0.29857487]
[1731185217999,0.64031632,3085.7,3084.9,0.7711]
[1731185218375,0.64031632,3085.7,3085.0,0.2985041]
[1731185218778,1.31816234,3085.7,3085.0,0.2985041]
[1731185219406,0.64031632,3085.7,3085.0,0.2985041]
[1731185219897,0.95254946,3085.7,3085.0,0.2985041]
[1731185221507,0.95254946,3085.7,3085.1,0.2985041]
[1731185221671,0.95254946,3085.7,3085.0,0.2985041]
[1731185221868,0.95254946,3085.7,3084.9,0.7711]
[1731185222076,0.95254946,3085.7,3085.0,0.29829193]
[1731185222270,0.16303955,3085.6,3085.0,0.29829193]
[1731185222764,0.16303955,3085.6,3084.9,0.7711]
[1731185223476,0.16303955,3085.6,3085.0,0.29829874]
[1731185223680,0.16303955,3085.6,3085.1,0.29831502]
[1731185224609,0.16303955,3085.6,3084.9,0.7711]
[1731185224610,0.16303955,3085.6,3085.0,0.29831502]
[1731185224902,0.16303955,3085.6,3084.9,0.7711]
[1731185225098,0.16303955,3085.6,3085.0,0.29834493]
[1731185225404,0.16303955,3085.6,3084.9,0.7711]
[1731185225612,0.16303955,3085.6,3085.1,0.2984628]
[1731185225913,0.16303955,3085.6,3085.1,0.59693653]
[1731185227313,0.16303955,3085.6,3085.1,0.2984628]
[1731185227619,0.16303955,3085.6,3085.2,0.29868657]
[1731185227775,0.16303955,3085.6,3085.1,0.2984628]
[1731185228374,0.16303955,3085.6,3085.2,0.29863915]
[1731185228573,0.64031632,3085.7,3085.1,0.2984628]
[1731185228798,0.64031632,3085.7,3085.2,0.29861573]
[1731185229110,0.64031632,3085.7,3085.1,0.2984628]
[1731185229475,0.64031632,3085.7,3085.2,0.29866644]
[1731185229704,0.64031632,3085.7,3085.1,0.2984628]
[1731185229887,0.64031632,3085.7,3085.2,0.29865061]
[1731185230067,0.64031632,3085.7,3085.1,0.2984628]
[1731185230468,0.64031632,3085.7,3085.2,0.29864578]
[1731185230688,1.15087255,3085.7,3085.1,0.2984628]
[1731185231408,1.15087255,3085.7,3085.2,0.29870369]
[1731185231708,1.15087255,3085.7,3085.1,0.2984628]
[1731185231899,1.15087255,3085.7,3085.2,0.29878216]
[1731185232094,1.15087255,3085.7,3085.1,0.2984628]
[1731185232411,1.15087255,3085.7,3085.2,0.29887543]
[1731185232712,1.15087255,3085.7,3085.3,0.29887543]
[1731185233021,1.15087255,3085.7,3085.1,0.2984628]
[1731185233173,1.15087255,3085.7,3085.2,0.29884719]
[1731185233381,1.15087255,3085.7,3085.3,0.29884719]
[1731185233609,1.15087255,3085.7,3085.1,0.2984628]
[1731185233813,1.15087255,3085.7,3085.2,0.29892522]
[1731185234124,1.15087255,3085.7,3085.3,0.29892522]
[1731185234311,3.0538241,3085.7,3085.1,0.77700926]
[1731185234622,3.0538241,3085.7,3085.2,0.29913015]
[1731185234623,1.93628241,3085.6,3085.2,0.29913015]
[1731185234832,2.61412843,3085.6,3084.6,0.7548]
[1731185235130,2.61412843,3085.6,3084.7,0.77779499]
[1731185235300,2.61412843,3085.6,3084.8,0.77779499]
[1731185235485,0.44795503,3085.5,3084.9,0.77779499]
[1731185235688,1.38628241,3085.6,3085.0,0.77779499]
[1731185235884,1.31816234,3085.7,3085.1,1.05395192]
[1731185235885,0.64031632,3085.7,3085.1,1.05395192]
[1731185236128,0.64031632,3085.7,3085.2,0.77777117]
[1731185237196,0.67784602,3086.0,3085.3,1.05394276]
[1731185237437,0.7809,3086.4,3085.4,0.7548]
[1731185237719,0.64563163,3086.3,3085.4,0.7548]
[1731185238329,0.64563163,3086.3,3085.5,0.47862841]
[1731185238493,0.7809,3086.4,3085.6,0.47862841]
[1731185238833,0.67784602,3086.7,3085.7,0.7548]
[1731185239140,0.24755151,3086.7,3085.8,0.47854497]
[1731185239425,1.3309,3086.6,3085.9,0.47854497]
[1731185239732,1.45874602,3086.3,3085.5,0.7976271]
[1731185239891,1.45874602,3086.3,3085.6,0.4787905]
[1731185240092,1.45874602,3086.3,3085.5,0.7976271]
[1731185240093,0.2008746,3086.2,3085.5,0.49848434]
[1731185240344,0.2008746,3086.2,3085.6,0.47881016]
[1731185240619,0.2008746,3086.2,3085.5,0.49848434]
[1731185240820,0.2008746,3086.2,3085.6,0.77791556]
[1731185241017,0.2008746,3086.2,3085.6,0.2990906]
[1731185241225,0.16596206,3086.1,3085.7,0.4788134]
[1731185241384,0.16596206,3086.1,3085.6,0.2990906]
[1731185241803,0.16596206,3086.1,3085.7,0.2990906]
[1731185242451,0.16596206,3086.1,3085.8,0.29928457]
[1731185243548,0.16596206,3086.1,3085.4,0.7548]
[1731185243549,0.16596206,3086.1,3085.9,0.29928457]
[1731185243745,0.16596206,3086.1,3086.0,0.29928457]
[1731185244042,0.16596206,3086.1,3086.0,0.29933764]
[1731185244344,0.84380808,3086.1,3085.5,0.47893091]
[1731185244503,0.84380808,3086.1,3085.6,0.29933904]
[1731185244846,0.84380808,3086.1,3085.7,0.47893091]
[1731185245054,0.84380808,3086.1,3085.6,0.29933904]
[1731185245209,0.16983905,3086.0,3085.6,0.29933904]
[1731185245552,0.16983905,3086.0,3085.7,0.29933904]
[1731185245553,0.84768507,3086.0,3085.7,0.29933904]
[1731185245758,0.67784602,3086.0,3085.2,0.7566]
[1731185245963,0.67784602,3086.0,3085.3,0.7783683]
[1731185246114,0.67784602,3086.0,3085.7,0.47895545]
[1731185247831,0.67784602,3086.0,3085.8,0.29937229]
[1731185248034,0.67784602,3086.0,3085.7,0.47895545]
[1731185248235,0.67784602,3086.0,3085.8,0.29937232]
[1731185248450,0.67784602,3086.0,3085.9,0.29935388]
[1731185248666,4.01676903,3086.1,3085.9,0.29935388]
[1731185248826,4.01676903,3086.1,3085.7,0.47895545]
[1731185248827,0.67729293,3086.1,3085.7,0.47895545]
[1731185249030,0.67729293,3086.1,3085.8,1.05593191]
[1731185249256,1.33100076,3086.2,3085.8,1.05593191]
[1731185249428,1.33100076,3086.2,3085.9,0.47878419]
[1731185249747,0.67729293,3086.1,3085.8,1.53480301]
[1731185249927,0.67729293,3086.1,3086.0,0.2992704]
[1731185250131,0.67729293,3086.2,3086.0,0.2992704]
[1731185250543,0.67729293,3086.1,3086.0,0.2992704]
[1731185252464,1.35569205,3086.2,3086.0,0.2992704]
[1731185253469,1.35569205,3086.2,3086.1,0.2992704]
[1731185253774,0.66936502,3086.2,3085.8,0.4788711]
[1731185253930,1.35684804,3086.1,3085.9,0.29920282]
[1731185254132,1.35684804,3086.0,3085.8,0.4788711]
[1731185254570,1.35684804,3085.9,3085.6,0.47879293]
[1731185254776,1.0177305,3085.8,3085.4,0.814]
[1731185254934,0.67848732,3085.6,3085.4,0.814]
[1731185255333,0.67848732,3085.6,3085.5,0.47880754]
[1731185256054,0.67848732,3085.7,3085.5,0.47892762]
[1731185256261,0.67848732,3085.7,3085.4,0.814]
[1731185256262,0.67848732,3085.7,3085.6,0.47892762]
[1731185256772,0.67848732,3085.7,3085.6,0.77825738]
[1731185257673,1.0177305,3085.8,3085.6,0.77825738]
[1731185257886,1.0177305,3085.8,3085.7,0.77828089]
[1731185258037,1.0177305,3085.8,3085.7,0.29932976]
[1731185258234,1.0177305,3085.8,3085.7,0.77830864]
[1731185258568,1.0177305,3085.8,3085.7,0.29932976]
[1731185258978,1.0177305,3085.8,3085.7,0.77831697]
[1731185259689,1.0177305,3085.9,3085.7,0.77831697]
[1731185259895,1.0177305,3085.9,3085.7,0.29932976]
[1731185260413,1.35684804,3086.0,3085.8,0.29932976]
[1731185260691,1.01811317,3085.9,3085.8,0.29932976]
[1731185261396,1.35684804,3086.0,3085.8,0.29932976]
[1731185261579,1.35684804,3086.0,3085.9,0.29932976]
[1731185262187,1.69426003,3086.1,3085.9,0.29932976]
[1731185262494,1.35745139,3086.0,3085.7,0.814]
[1731185262696,1.01807975,3085.8,3085.7,0.814]
[1731185262853,1.01807975,3085.8,3085.7,1.29314172]
[1731185263054,1.01807975,3085.9,3085.7,1.29314172]
[1731185263256,0.67872501,3085.8,3085.7,0.814]
[1731185263587,0.67872501,3086.1,3085.7,1.70354268]
[1731185263894,0.67872501,3086.4,3086.0,0.814]
[1731185264068,1.01807975,3086.6,3086.0,0.814]
[1731185264069,0.67872501,3086.5,3086.0,0.814]
[1731185264597,1.01807975,3086.6,3086.1,0.47917749]
[1731185264598,0.67872501,3086.6,3086.1,0.47917749]
[1731185264798,0.67872501,3086.6,3086.3,0.814]
[1731185265410,0.67872501,3086.6,3086.4,0.47917749]
[1731185265596,0.67872501,3086.6,3086.5,0.47917749]
[1731185265797,0.67872501,3086.6,3086.5,0.77864486]
[1731185266006,0.67872501,3086.6,3086.5,0.59872508]
[1731185266210,0.67872501,3086.6,3086.5,0.29946737]
[1731185266383,0.67872501,3086.6,3086.5,1.55618125]
[1731185266698,0.67872501,3086.7,3086.5,1.25671388]
[1731185266908,0.67872501,3086.7,3086.6,0.77790155]
[1731185267363,0.67872501,3086.7,3086.5,0.47881233]
[1731185267561,0.67872501,3086.7,3086.6,0.47859755]
[1731185267866,1.01807975,3086.9,3086.6,0.47859755]
[1731185267867,0.67872501,3086.9,3086.6,0.47859755]
[1731185268864,0.67872501,3087.0,3086.6,0.47859755]
[1731185269292,0.67872501,3086.9,3086.6,0.47859755]
[1731185269797,0.67872501,3087.0,3086.6,0.47859755]
[1731185269984,0.67872501,3087.0,3086.7,0.47859755]
[1731185270571,0.67872501,3087.0,3086.5,0.47881233]
[1731185271266,0.67872501,3086.9,3086.5,0.47881233]
[1731185271466,0.67872501,3087.0,3086.5,0.47881233]
[1731185271890,1.43792501,3086.8,3086.5,0.47881233]
[1731185272086,0.67872501,3086.8,3086.5,0.47881233]
[1731185272390,0.67872501,3087.0,3086.6,0.814]
[1731185272793,0.67872501,3086.9,3086.6,0.814]
[1731185272992,0.67872501,3087.0,3086.6,0.814]
[1731185274529,0.67872501,3087.0,3086.5,0.47881233]
[1731185274727,0.67872501,3086.9,3086.4,0.7812]
[1731185275691,0.67872501,3086.9,3086.5,0.29863351]
[1731185276121,0.67872501,3086.9,3086.4,0.7812]
[1731185276328,0.67872501,3086.9,3086.5,0.29863784]
[1731185276529,0.67872501,3086.9,3086.6,0.29863784]
[1731185276910,0.67872501,3086.9,3086.4,0.7812]
[1731185277313,0.67872501,3086.9,3085.9,1.0750942]
[1731185277532,0.67872501,3086.7,3085.9,1.0750942]
[1731185277835,0.67872501,3086.6,3085.9,1.0750942]
[1731185278394,0.67872501,3086.5,3085.9,1.0750942]